bitfinex/quotes_ETHUSD_20220202
["timestamp","ask_amount","ask_price","bid_price","bid_amount"]
[1643838171185,1.02343429,2640.1,2638.6,0.01]
[1643838171384,1.02343429,2640.1,2638.7,0.63734]
[1643838171385,10.0,2640.0,2638.7,0.63734]
[1643838172257,10.0,2640.0,2639.2,0.00531396]
[1643838172457,10.0,2640.0,2639.3,0.63734]
[1643838172660,0.01988562,2640.9,2639.4,5.7]
[1643838172965,0.00259063,2641.0,2639.5,0.84968637]
[1643838173156,0.00259063,2641.0,2640.2,0.67146124]
[1643838173359,0.00259063,2641.0,2640.3,0.82654]
[1643838173756,0.00259063,2641.0,2640.3,1.23734]
[1643838173956,0.00259063,2641.0,2640.3,1.2499708]
[1643838174156,0.00259063,2641.0,2640.3,0.6499708]
[1643838174357,0.00259063,2641.0,2640.3,0.63734]
[1643838174562,0.00259063,2641.0,2640.3,0.93734]
[1643838174759,0.00259063,2641.0,2640.6,0.72372478]
[1643838174960,3.41945842,2642.0,2640.7,6.148]
[1643838174961,0.92890672,2642.0,2640.7,6.148]
[1643838175259,0.92890672,2642.0,2640.8,0.01736702]
[1643838175463,0.92890672,2642.0,2640.9,0.63734]
[1643838175758,0.79915823,2641.5,2640.9,0.448]
[1643838175975,0.79915823,2641.5,2640.5,1.0]
[1643838175976,0.79915823,2641.5,2641.2,0.00433966]
[1643838176176,0.1892,2642.3,2641.2,0.00433966]
[1643838176379,0.1892,2641.9,2641.2,0.00433966]
[1643838176575,1.3476046,2642.4,2641.2,0.00433966]
[1643838176576,0.1892,2642.2,2641.2,0.00433966]
[1643838176776,1.3476046,2642.4,2641.0,0.448]
[1643838176777,0.1892,2642.3,2641.0,0.448]
[1643838176975,0.36325,2642.3,2641.0,0.448]
[1643838177175,0.18487628,2641.7,2641.4,0.00433941]
[1643838177377,0.73006653,2641.6,2641.4,0.00433941]
[1643838177979,0.73006653,2641.6,2640.4,0.6372]
[1643838177980,0.91926653,2641.6,2640.4,0.6372]
[1643838178178,0.91926653,2641.6,2641.4,0.00458616]
[1643838178579,4.96668199,2641.5,2641.4,0.00458616]
[1643838178777,5.15588199,2641.5,2641.4,0.00458616]
[1643838179277,0.19891685,2640.3,2639.7,4.116]
[1643838179478,1.0,2641.2,2639.5,0.0183578]
[1643838179752,5.7,2641.3,2639.5,0.0183578]
[1643838179753,1.0599,2640.3,2639.5,0.0183578]
[1643838179947,0.1894,2640.2,2639.5,0.0183578]
[1643838180445,0.1894,2640.2,2638.8,0.18934]
[1643838180446,0.8577552,2639.9,2638.8,0.18934]
[1643838180846,0.8577552,2639.9,2639.0,0.17113482]
[1643838181045,0.1894,2640.3,2639.0,0.17113482]
[1643838181247,0.0608,2640.4,2639.0,0.17113482]
[1643838181248,0.1894,2640.1,2639.0,0.17113482]
[1643838181447,0.2502,2640.4,2639.1,0.63734]
[1643838181649,0.0608,2640.4,2639.1,0.63734]
[1643838181846,0.0608,2640.4,2639.2,0.21055486]
[1643838182045,0.0608,2640.4,2639.4,0.01313494]
[1643838182046,0.84197034,2640.1,2639.4,0.01313494]
[1643838182245,0.84197034,2640.1,2639.5,0.448]
[1643838182846,0.0608,2640.4,2639.5,0.448]
[1643838183248,0.0608,2640.4,2639.7,0.00136013]
[1643838183676,0.1894,2640.8,2639.7,0.00136013]
[1643838183876,0.73169262,2640.5,2639.8,0.448]
[1643838184475,0.73169262,2640.5,2640.1,0.00453279]
[1643838184677,0.9090217,2640.5,2640.1,0.00453279]
[1643838184876,0.9090217,2640.5,2638.8,6.24208138]
[1643838184877,5.7,2640.2,2638.4,4.5724073]
[1643838185079,5.7,2640.2,2637.5,3.8662]
[1643838185080,1.0,2639.6,2637.5,3.8662]
[1643838185377,1.00377441,2639.3,2637.5,3.8662]
[1643838185576,1.0,2638.9,2637.4,0.1894]
[1643838185783,1.33167562,2638.8,2637.4,0.1894]
[1643838185977,0.21077201,2638.2,2637.4,0.1894]
[1643838186175,0.87977364,2637.7,2637.4,0.1894]
[1643838186376,0.1895,2638.5,2637.4,0.1894]
[1643838186577,0.01988562,2638.8,2637.5,0.448]
[1643838187076,0.22741659,2638.8,2637.6,0.18934]
[1643838187330,0.01988562,2638.8,2637.6,0.18934]
[1643838187825,0.01988562,2638.8,2637.5,0.448]
[1643838187826,0.94794,2638.7,2637.5,0.448]
[1643838188027,0.94794,2638.7,2638.1,0.00166392]
[1643838188430,0.83429347,2638.6,2638.1,0.00166392]
[1643838188631,4.0790399,2638.5,2638.1,0.00166392]
[1643838188830,0.17419,2638.4,2638.1,0.00166392]
[1643838189127,0.94835,2637.9,2636.7,0.30781434]
[1643838189329,3.98825243,2637.8,2636.7,0.11831434]
[1643838189530,0.791022,2637.1,2636.7,0.11831434]
[1643838190128,0.791022,2637.1,2636.3,0.1895]
[1643838190331,1.678322,2637.1,2635.9,0.448]
[1643838190529,1.678322,2637.1,2635.8,0.1895]
[1643838190830,0.8873,2637.1,2635.8,0.1895]
[1643838191081,0.94863,2636.9,2636.0,0.17113482]
[1643838191379,0.8873,2637.1,2636.0,0.17113482]
[1643838191380,0.1895,2637.1,2636.1,0.448]
[1643838191676,0.17419,2638.1,2636.2,0.18934]
[1643838191677,0.1895,2637.7,2636.2,0.18934]
[1643838191877,0.1895,2638.0,2636.3,0.448]
[1643838192076,0.1895,2638.0,2636.4,0.18934]
[1643838192279,0.92175991,2637.2,2636.8,0.00085083]
[1643838192879,0.1895,2637.7,2636.9,0.00547858]
[1643838193079,0.00294191,2637.8,2636.9,0.00547858]
[1643838193277,0.00294191,2637.8,2637.0,0.448]
[1643838193878,0.79448177,2637.6,2637.0,0.448]
[1643838194279,0.79448177,2637.6,2637.3,0.00547775]
[1643838194925,0.79448177,2637.6,2636.4,0.1895]
[1643838194926,0.93027098,2637.1,2636.4,0.16774288]
[1643838195126,0.93027098,2637.1,2636.3,0.448]
[1643838195325,0.93027098,2637.1,2636.9,0.0066037]
[1643838195727,0.94838,2637.6,2636.9,0.0066037]
[1643838195928,0.00294191,2637.8,2636.9,0.0066037]
[1643838196126,0.16491257,2637.5,2636.9,0.0066037]
[1643838196328,0.00294191,2637.8,2636.6,0.448]
[1643838196528,0.00391678,2637.5,2636.6,0.448]
[1643838196726,0.00391678,2637.5,2636.6,0.4675731]
[1643838196926,0.00391678,2637.5,2636.6,0.6375]
[1643838197333,0.0086775,2637.5,2637.2,0.00084722]
[1643838197529,0.00476072,2637.5,2637.2,0.00084722]
[1643838198605,0.17419,2637.3,2637.2,0.00084722]
[1643838199403,0.1895,2637.4,2637.2,0.00084722]
[1643838199605,0.19969023,2637.5,2637.2,0.00084722]
[1643838199808,0.1895,2638.0,2637.2,0.00084722]
[1643838200008,0.1895,2638.0,2637.3,0.448]
[1643838200207,0.00542951,2637.5,2637.3,0.448]
[1643838200812,2.951e-05,2637.5,2637.3,0.748]
[1643838201004,2.951e-05,2637.5,2637.3,0.76833708]
[1643838201207,0.20938562,2638.8,2637.3,0.76833708]
[1643838201208,0.01988562,2638.8,2637.3,1.06833708]
[1643838201608,0.01988562,2638.8,2637.4,0.18934]
[1643838201805,0.16031111,2638.5,2637.5,0.448]
[1643838202004,0.16031111,2638.5,2637.3,0.17113482]
[1643838202005,0.78424177,2638.4,2637.6,0.448]
[1643838202827,0.01988562,2638.8,2637.6,0.448]
[1643838203224,0.01988562,2638.8,2637.6,0.46323402]
[1643838203425,0.01988562,2638.8,2637.7,0.18934]
[1643838203626,1.97327997,2639.1,2637.7,0.18934]
[1643838203627,0.07739997,2639.1,2637.8,0.56631434]
[1643838203825,0.07739997,2639.1,2637.9,0.90292086]
[1643838203826,0.90342705,2638.9,2637.9,0.90292086]
[1643838204026,0.07739997,2639.1,2638.0,0.63734]
[1643838204232,0.1895,2639.2,2638.1,4.43781081]
[1643838204430,0.1894,2639.5,2638.2,1.18934]
[1643838204628,0.1894,2639.6,2638.3,0.448]
[1643838204831,1.5003997,2640.3,2638.4,4.30721037]
[1643838204832,0.1894,2640.2,2638.4,4.30721037]
[1643838205030,1.312e-05,2638.8,2638.5,0.448]
[1643838205230,1.312e-05,2638.8,2638.7,5.88934]
[1643838205430,1.312e-05,2638.8,2638.7,7.33734]
[1643838205631,1.312e-05,2638.8,2638.7,9.2319345]
[1643838205830,1.312e-05,2638.8,2638.7,7.33734]
[1643838206080,0.86442687,2640.1,2638.7,7.33734]
[1643838206081,0.86442687,2640.1,2638.7,6.33734]
[1643838206282,0.86316796,2639.7,2638.8,0.3]
[1643838206481,0.86316796,2639.7,2638.9,0.448]
[1643838206680,0.86316796,2639.7,2639.0,0.448]
[1643838206883,0.94748,2640.2,2638.7,7.53405306]
[1643838206884,1.13688,2640.2,2639.1,0.448]
[1643838207083,0.1894,2640.5,2639.2,4.81393733]
[1643838207283,0.21236416,2640.3,2639.3,1.0]
[1643838207480,1.3262097,2641.3,2639.4,0.448]
[1643838207481,0.36339,2641.2,2639.4,0.448]
[1643838207682,0.36339,2641.2,2639.2,0.50710951]
[1643838207683,0.1894,2640.8,2639.5,0.448]
[1643838207881,0.80898978,2640.1,2639.6,0.448]
[1643838208086,0.80898978,2640.1,2639.1,0.91457017]
[1643838208087,0.896,2639.5,2639.1,0.00960438]
[1643838208283,1.11028978,2640.1,2638.4,2.55584]
[1643838208484,1.0182,2639.6,2638.4,2.55584]
[1643838208683,1.0182,2639.6,2638.5,0.448]
[1643838209081,0.70125875,2639.3,2638.5,0.448]
[1643838209723,0.1894,2640.0,2638.5,0.448]
[1643838209724,0.17419,2639.9,2638.5,0.448]
[1643838209926,0.00554171,2639.0,2638.6,1.16041704]
[1643838210126,0.00554171,2639.0,2638.7,0.448]
[1643838210425,0.00554171,2639.0,2638.9,5.88934]
[1643838210626,0.00554171,2639.0,2638.9,6.33734]
[1643838210824,1.05356595,2639.9,2638.9,6.33734]
[1643838211026,0.87244929,2639.9,2638.9,6.36381925]
[1643838211326,0.00554167,2639.1,2638.9,6.148]
[1643838212133,0.87244929,2639.9,2638.9,6.148]
[1643838212134,0.16082317,2639.7,2638.9,6.148]
[1643838212327,0.00554164,2639.1,2638.9,6.148]
[1643838213330,0.00447448,2639.2,2638.9,6.45789885]
[1643838213577,0.0053576,2639.1,2638.9,6.448]
[1643838213777,0.0053576,2639.1,2638.9,6.148]
[1643838214180,0.0053576,2639.1,2638.2,2.532521]
[1643838214379,0.0053576,2639.1,2638.2,2.343121]
[1643838214580,0.00447448,2639.2,2638.2,2.343121]
[1643838214784,0.0053576,2639.1,2638.2,2.343121]
[1643838215179,0.0053576,2639.1,2638.2,2.532461]
[1643838215379,0.0053576,2639.1,2638.2,2.343121]
[1643838215781,0.00447448,2639.2,2638.2,2.343121]
[1643838215782,0.69149827,2639.2,2638.2,2.343121]
[1643838215981,0.00535749,2638.9,2638.2,0.448]
[1643838216780,0.00535749,2638.9,2638.0,0.1894]
[1643838216982,0.68838933,2638.7,2638.0,0.1894]
[1643838217436,0.17419,2638.6,2638.0,0.1894]
[1643838217630,5.7,2638.5,2636.7,0.63734]
[1643838217829,1.0,2638.3,2636.6,0.1895]
[1643838218032,0.36369,2638.2,2636.1,0.63734]
[1643838218230,0.93330896,2636.5,2636.2,0.1895]
[1643838218427,0.93330896,2636.5,2636.1,0.6375]
[1643838218627,0.94847,2637.4,2636.0,0.1895]
[1643838218826,0.94847,2637.4,2635.8,0.448]
[1643838218827,1.13797,2637.4,2635.8,0.6375]
[1643838219530,0.2076477,2636.8,2635.8,0.6375]
[1643838219728,0.94856,2637.1,2635.8,0.448]
[1643838219933,0.148,2637.7,2635.8,0.448]
[1643838219934,6.3362,2637.6,2635.8,0.6375]
[1643838220229,6.1467,2637.6,2635.9,0.20520814]
[1643838220428,0.1895,2637.5,2636.0,0.6375]
[1643838220628,0.1895,2637.5,2636.1,0.18934]
[1643838220831,0.1895,2637.5,2636.6,0.00163421]
[1643838220832,0.88773266,2636.7,2636.6,0.00163421]
[1643838221679,0.88773266,2636.7,2635.9,0.1895]
[1643838221879,0.88773266,2636.7,2636.5,0.0053929]
[1643838222381,0.1895,2636.8,2636.5,0.0053929]
[1643838222584,0.1947502,2637.3,2636.5,0.0053929]
[1643838222779,0.17419,2637.2,2635.9,0.56446775]
[1643838222980,0.1895,2637.1,2635.9,0.56446775]
[1643838223179,0.1895,2637.1,2636.5,0.0053929]
[1643838223381,0.9480957,2636.7,2636.5,0.0053929]
[1643838223784,0.18681644,2637.0,2636.5,0.0053929]
[1643838224184,0.18681644,2637.0,2635.9,1.3964936]
[1643838224384,0.18681644,2637.0,2635.9,1.6964936]
[1643838224585,0.18681644,2637.0,2635.9,0.448]
[1643838225132,0.1895,2637.2,2635.9,0.448]
[1643838225328,0.94856,2637.1,2635.9,0.448]
[1643838225629,0.00553994,2636.6,2636.0,0.0053266]
[1643838226529,0.00553994,2636.6,2635.6,0.1895]
[1643838226530,1.13646703,2636.8,2635.6,0.1895]
[1643838226731,0.74436774,2636.3,2635.6,0.1895]
[1643838226930,0.74436774,2636.3,2636.0,0.0053266]
[1643838227131,0.21041911,2636.2,2636.0,0.0053266]
[1643838227532,0.17041911,2636.2,2636.0,0.0053266]
[1643838227838,0.17041911,2636.2,2635.3,0.00096]
[1643838227839,0.83741874,2635.5,2635.3,0.00096]
[1643838228034,0.17419,2636.1,2635.3,0.02131175]
[1643838228035,0.38201907,2636.1,2635.3,0.02131175]
[1643838228234,0.36369,2636.1,2635.3,0.02131175]
[1643838228901,0.36369,2636.1,2634.5,0.00096]
[1643838228902,2.26173,2636.1,2634.5,0.00096]
[1643838229198,2.26173,2636.1,2635.2,0.02131285]
[1643838229600,3.26173,2636.1,2635.2,0.02131285]
[1643838229799,2.26173,2636.1,2635.2,0.02131285]
[1643838230002,2.26173,2636.1,2635.2,0.00465095]
[1643838230003,0.1895,2636.1,2635.2,0.00465095]
[1643838230199,6.1616,2636.2,2634.8,0.00096]
[1643838230200,0.94002171,2635.7,2635.1,0.40265095]
[1643838230405,0.94002171,2635.7,2635.5,0.00532751]
[1643838230600,0.17419,2635.6,2635.5,0.00532751]
[1643838230799,0.94002171,2635.7,2635.5,0.00532751]
[1643838231198,2.40024061,2635.6,2635.5,0.00532751]
[1643838231399,2.40024061,2635.6,2635.2,0.04092649]
[1643838231603,5.25,2635.5,2634.8,0.00096]
[1643838231802,5.25,2635.5,2634.5,0.00096]
[1643838231803,5.4397,2635.5,2634.5,0.00096]
[1643838232002,5.4397,2635.5,2633.1,1.6865]
[1643838232003,5.17749861,2635.3,2633.1,1.6865]
[1643838232225,5.17749861,2635.3,2633.2,0.11831434]
[1643838232226,0.36389,2635.2,2633.2,0.11831434]
[1643838232626,4.30976452,2635.1,2633.4,0.99433233]
[1643838232826,3.81046425,2635.1,2633.4,0.99433233]
[1643838233030,3.91746617,2635.1,2633.4,0.99433233]
[1643838233329,1.12357,2635.0,2633.4,0.1782963]
[1643838233525,0.16083906,2634.5,2633.5,0.1898]
[1643838233725,3.90363254,2634.9,2633.5,0.1898]
[1643838233928,1.17419,2634.8,2634.1,9.793e-05]
[1643838234131,0.9496,2634.5,2634.1,9.793e-05]
[1643838234330,5.7,2634.2,2634.1,9.793e-05]
[1643838234529,6.97779861,2634.2,2633.7,0.00639268]
[1643838234730,0.92621152,2634.0,2633.7,0.00639268]
[1643838234928,0.92621152,2634.0,2632.4,0.007]
[1643838234929,0.19348136,2633.8,2632.4,0.007]
[1643838235331,3.6,2633.5,2631.8,0.42234414]
[1643838235535,4.80359,2633.5,2631.9,0.1898]
[1643838235731,0.8998124,2632.5,2631.5,0.1899]
[1643838235986,0.01918242,2632.5,2631.5,0.1899]
[1643838236184,0.1899,2633.4,2631.6,0.02764414]
[1643838236185,0.17419,2633.1,2631.6,0.02764414]
[1643838236386,0.1899,2633.4,2631.6,0.02764414]
[1643838236387,0.01273988,2633.4,2631.8,0.99999999]
[1643838236589,1.3262097,2633.6,2631.9,5.80735275]
[1643838236782,1.3262097,2633.6,2632.2,1.01185486]
[1643838236985,0.77848808,2633.8,2632.8,0.20907983]
[1643838237181,0.77848808,2633.8,2632.9,0.6377]
[1643838237383,0.77848808,2633.8,2632.9,0.448]
[1643838237786,0.77848808,2633.8,2632.8,0.02764414]
[1643838237984,0.78308088,2633.8,2632.4,0.6377]
[1643838238184,0.19229187,2633.5,2632.4,0.82346509]
[1643838238383,0.19229187,2633.5,2632.4,0.448]
[1643838238783,0.19229187,2633.5,2632.8,0.00529162]
[1643838238986,0.1897,2633.4,2632.8,0.00529162]
[1643838239194,1.3262097,2633.7,2632.8,0.00529162]
[1643838239195,0.1898,2633.7,2632.9,5.7]
[1643838239386,0.17419,2634.9,2632.9,5.7]
[1643838239387,0.1898,2634.3,2633.3,0.73121294]
[1643838239586,0.00526902,2634.4,2633.4,0.448]
[1643838239831,0.00526902,2634.4,2633.4,0.1897]
[1643838240025,0.00526902,2634.4,2633.5,0.448]
[1643838240529,0.75584868,2634.4,2633.5,0.448]
[1643838241128,0.36389,2634.3,2633.1,0.1897]
[1643838241328,0.36389,2634.3,2633.8,0.00528961]
[1643838241724,0.17373724,2634.2,2633.8,0.00528961]
[1643838241924,0.17419,2634.1,2633.8,0.00528961]
[1643838242124,0.17373724,2634.2,2633.1,0.1897]
[1643838242125,0.17419,2633.9,2633.1,0.1897]
[1643838242526,1.0,2633.8,2633.5,0.0211612]
[1643838242727,4.27419,2633.6,2633.5,0.0211612]
[1643838242926,4.41238997,2633.6,2633.1,0.1897]
[1643838243128,2.10730374,2633.5,2632.2,0.448]
[1643838243483,2.10730374,2633.5,2631.9,0.448]
[1643838243484,1.25013,2633.2,2631.9,0.448]
[1643838243678,0.36409,2633.1,2631.9,0.448]
[1643838243878,0.51769,2633.1,2631.9,0.448]
[1643838244079,0.1544,2633.0,2631.9,0.448]
[1643838244278,0.21449521,2632.2,2631.9,0.448]
[1643838244481,0.21449521,2632.2,2632.0,2.5]
[1643838244679,0.21449521,2632.2,2632.0,2.51]
[1643838244881,0.21449521,2632.2,2632.0,0.01]
[1643838245078,0.21449521,2632.2,2631.6,0.448]
[1643838245279,0.21449521,2632.2,2631.1,0.1899]
[1643838245280,1.22239521,2632.2,2631.1,0.1899]
[1643838245481,1.22239521,2632.2,2631.2,0.448]
[1643838245482,1.13897507,2631.7,2631.2,0.448]
[1643838245782,1.13897507,2631.7,2630.8,0.00096]
[1643838245783,0.19,2632.4,2631.3,0.448]
[1643838245986,0.19,2632.4,2630.7,0.02764414]
[1643838245987,0.19,2632.7,2631.4,0.448]
[1643838246180,0.19,2632.7,2630.9,0.9501502]
[1643838246181,0.1899,2632.8,2631.5,0.448]
[1643838246482,0.1899,2632.8,2631.6,0.448]
[1643838246681,0.93707714,2632.3,2631.7,0.448]
[1643838246882,0.1899,2632.7,2631.8,0.448]
[1643838247258,0.17419,2632.7,2632.1,0.00517403]
[1643838247753,0.18992,2632.6,2632.1,0.00517403]
[1643838248154,0.18992,2632.6,2631.9,0.448]
[1643838248451,0.18992,2632.6,2632.2,0.00517373]
[1643838248661,0.00533695,2632.9,2632.3,0.448]
[1643838249553,0.00533695,2632.9,2632.5,0.00517324]
[1643838249755,0.00533695,2632.9,2632.6,0.448]
[1643838250356,0.00533695,2632.9,2632.6,0.48382864]
[1643838250558,3.695e-05,2632.9,2632.6,0.78382864]
[1643838250757,3.695e-05,2632.9,2632.7,0.3040544]
[1643838250983,3.695e-05,2632.9,2632.8,11.747]
[1643838251184,3.695e-05,2632.9,2632.8,12.2537044]
[1643838251382,3.695e-05,2632.9,2632.8,13.2537044]
[1643838251584,0.00552298,2633.6,2632.8,13.2537044]
[1643838251585,0.00552298,2633.6,2633.5,5.7]
[1643838251786,0.73653212,2634.5,2633.5,0.448]
[1643838252184,0.00517797,2633.6,2633.5,4.798]
[1643838252583,0.73653212,2634.5,2633.7,1.92066744]
[1643838252785,0.01988562,2634.8,2634.0,0.94946]
[1643838252984,0.01988562,2634.8,2634.1,0.02598185]
[1643838253383,0.01988562,2634.8,2633.9,0.44896]
[1643838253585,0.70822,2633.7,2633.6,2.15]
[1643838253788,0.01988562,2634.8,2633.6,2.15]
[1643838253789,0.01988562,2634.8,2633.7,0.448]
[1643838254184,0.20980562,2634.8,2634.2,1.8985912]
[1643838254388,0.20980562,2634.8,2633.6,2.15]
[1643838254828,0.20980562,2634.8,2633.9,0.96820461]
[1643838255128,0.20980562,2634.8,2633.9,2.86710721]
[1643838255129,0.01988562,2634.8,2633.9,2.86710721]
[1643838255328,0.15958562,2634.9,2633.9,3.31510721]
[1643838255528,0.32811997,2635.0,2634.0,0.02613684]
[1643838255729,0.1897,2634.9,2633.9,2.8484426]
[1643838255930,0.69966154,2634.6,2633.9,2.8484426]
[1643838256130,0.69966154,2634.6,2633.9,0.94954]
[1643838256131,0.19635488,2634.1,2633.9,0.94954]
[1643838256332,0.99295488,2634.1,2633.7,0.03752079]
[1643838256530,0.99295488,2634.1,2633.4,0.0015553]
[1643838256531,0.18992,2634.0,2633.4,0.9512764]
[1643838256730,0.18992,2634.0,2633.2,0.1897]
[1643838256928,0.73477887,2633.5,2633.2,0.1897]
[1643838257130,0.73477887,2633.5,2633.4,0.00518433]
[1643838257131,4.00658417,2633.5,2633.4,0.00518433]
[1643838257329,0.18992,2633.8,2633.4,0.00518433]
[1643838257530,0.37962,2633.8,2633.4,0.00518433]
[1643838257730,3.56789414,2633.7,2633.4,0.00518433]
[1643838257930,0.18992,2633.8,2633.2,0.1897]
[1643838258130,0.18992,2633.5,2633.2,0.1897]
[1643838258329,0.79019626,2632.8,2632.0,0.1897]
[1643838258579,0.17325667,2632.9,2632.6,0.94995]
[1643838258986,0.18992,2633.0,2632.6,0.94995]
[1643838259179,0.18992,2633.2,2632.6,0.94995]
[1643838259380,0.19366766,2633.7,2632.6,0.94995]
[1643838259982,0.86980391,2633.0,2632.6,0.94995]
[1643838260183,0.86980391,2633.0,2632.7,0.9499126]
[1643838260483,0.86980391,2633.0,2632.6,0.95995]
[1643838260684,0.86980391,2633.0,2632.2,5.6987345]
[1643838260685,0.18992,2632.8,2632.7,0.00512097]
[1643838260882,1.93750391,2633.0,2632.7,0.00512097]
[1643838261488,1.93750391,2633.0,2632.3,0.95014]
[1643838261880,1.93750391,2633.0,2632.7,0.00512088]
[1643838262328,5.51656598,2633.0,2632.7,0.00512088]
[1643838262527,5.51656598,2633.0,2632.8,0.00082018]
[1643838262528,2.12739391,2633.0,2632.8,0.00082018]
[1643838262729,0.18989,2632.9,2632.8,0.00082018]
[1643838263530,1.89969,2632.9,2632.8,0.00082018]
[1643838263730,1.79723,2632.8,2632.7,2.236e-05]
[1643838264033,5.8,2632.7,2631.6,0.1899]
[1643838264231,1.33023,2632.6,2631.6,0.1899]
[1643838264430,27.68029609,2632.5,2630.5,0.1999]
[1643838264636,0.8835,2632.1,2630.5,0.00096]
[1643838264832,1.0,2631.6,2630.5,0.00096]
[1643838265029,23.88490658,2632.0,2630.5,0.00096]
[1643838265030,0.18989,2631.5,2630.5,0.00096]
[1643838265232,0.97169,2631.5,2630.2,0.00096]
[1643838265431,0.22331021,2630.8,2630.2,1.9122786]
[1643838265630,0.7818,2631.5,2630.5,0.02024434]
[1643838266080,0.7818,2631.5,2630.5,0.98086434]
[1643838266281,0.7818,2631.5,2630.5,2.12134804]
[1643838266483,0.7818,2631.5,2630.6,1.9009853]
[1643838266687,0.16797731,2630.9,2630.6,0.01]
[1643838266886,0.94799,2630.9,2630.5,0.20705139]
[1643838267082,0.94799,2630.9,2630.5,0.19609139]
[1643838267784,0.17753842,2630.7,2630.5,0.19]
[1643838267983,0.17753842,2630.7,2630.2,0.01]
[1643838268184,0.36742842,2630.7,2630.2,0.01]
[1643838268584,0.36742842,2630.7,2630.0,0.001]
[1643838268783,0.18989,2630.7,2630.0,0.001]
[1643838269385,0.67749356,2630.4,2630.0,0.001]
[1643838269830,0.19941589,2630.3,2630.0,0.001]
[1643838270029,0.37690945,2630.4,2630.0,0.001]
[1643838270231,0.18989,2630.3,2630.0,0.001]
[1643838270430,0.18989,2630.3,2630.1,0.00504298]
[1643838270632,0.76520945,2630.4,2630.1,0.00504298]
[1643838270831,0.21560456,2630.2,2630.1,0.00504298]
[1643838271031,0.18989,2630.2,2630.1,0.00504298]
[1643838271231,0.18989,2630.2,2630.0,0.001]
[1643838271433,5.65,2630.1,2629.3,0.81745]
[1643838271632,28.66688658,2630.1,2630.0,0.00152041]
[1643838271846,29.69458658,2630.1,2630.0,0.00152041]
[1643838272030,30.10702045,2630.1,2630.0,0.00152041]
[1643838272230,30.11022045,2630.1,2630.0,2.041e-05]
[1643838272431,30.63446045,2630.1,2629.0,0.00096]
[1643838272631,0.638,2630.0,2629.0,0.00096]
[1643838272831,1.8388,2630.0,2628.9,0.19]
[1643838273033,1.8388,2630.0,2628.9,0.0001]
[1643838273034,5.0,2629.6,2628.9,0.0001]
[1643838273236,12.31504022,2629.2,2628.3,0.00096]
[1643838273496,12.31504022,2629.2,2627.7,0.00096]
[1643838273497,2.57679893,2629.0,2627.7,0.00096]
[1643838273688,25.6642751,2628.9,2627.7,0.00096]
[1643838273889,6.0,2628.8,2627.8,0.04206333]
[1643838274091,6.0,2628.8,2626.7,0.95192]
[1643838274092,7.31504022,2628.1,2626.7,0.96192]
[1643838274395,7.31504022,2628.1,2626.1,0.1902]
[1643838274396,22.67428655,2628.0,2626.1,0.1902]
[1643838274591,0.851382,2627.6,2626.2,0.09351]
[1643838274791,0.13819997,2628.0,2626.3,0.1402]
[1643838274989,0.13819997,2628.0,2626.5,1.91366]
[1643838275192,0.13819997,2628.0,2626.9,0.00502634]
[1643838275388,3.31838852,2628.6,2627.0,0.1902]
[1643838275588,0.1902,2628.6,2627.0,0.1902]
[1643838275790,0.1902,2628.6,2627.5,0.67554898]
[1643838275990,0.13819997,2628.8,2627.6,0.21340147]
[1643838276188,0.13819997,2628.8,2627.6,0.1902]
[1643838276390,0.13819997,2628.8,2627.7,0.0050249]
[1643838276590,0.16165928,2628.8,2627.7,0.46398318]
[1643838276791,0.1901,2629.6,2628.2,0.89119788]
[1643838276995,6.5503,2630.1,2628.3,0.448]
[1643838276996,0.1902,2630.0,2628.3,0.448]
[1643838277234,6.5503,2630.1,2628.5,1.29999999]
[1643838277433,6.5503,2630.1,2628.6,0.448]
[1643838277639,7.5496,2630.6,2628.8,0.99999999]
[1643838277835,4.98827335,2631.4,2629.7,1.89691253]
[1643838277836,0.95072575,2630.9,2629.7,1.89691253]
[1643838278036,0.76072575,2630.9,2629.8,0.45240301]
[1643838278238,0.3801,2631.5,2629.8,0.45240301]
[1643838278239,0.19,2631.5,2629.9,0.00096]
[1643838278435,1.90113,2633.0,2630.0,1.46062716]
[1643838278436,0.19,2632.0,2630.0,1.46062716]
[1643838278643,6.5157,2632.8,2630.3,0.99999999]
[1643838278935,0.19,2632.8,2631.2,0.80012]
[1643838279134,0.1432,2633.0,2631.3,0.448]
[1643838279135,0.92116456,2632.6,2631.3,0.448]
[1643838279335,0.92116456,2632.6,2631.4,0.448]
[1643838279733,0.92116456,2632.6,2631.4,0.748]
[1643838279936,0.15771933,2632.2,2631.4,0.448]
[1643838280134,0.15771933,2632.2,2631.1,0.9957387]
[1643838280135,0.15771933,2632.2,2631.1,0.95019]
[1643838280334,3.08282074,2632.5,2631.1,0.95019]
[1643838280335,0.1899,2632.5,2631.1,0.95019]
[1643838280537,6.0762,2633.5,2631.2,3.08282074]
[1643838280538,0.448,2633.5,2631.2,3.08282074]
[1643838280742,0.448,2633.5,2632.5,0.3]
[1643838280988,1.32792048,2634.5,2632.5,0.3]
[1643838280989,0.1897,2634.4,2632.6,0.58619996]
[1643838281189,0.68505112,2633.3,2632.6,0.77599996]
[1643838281384,0.13819997,2634.0,2632.6,0.58619996]
[1643838281385,0.1899,2633.9,2632.6,0.58619996]
[1643838282186,0.1899,2633.9,2632.7,0.9495857]
[1643838282384,0.1899,2633.9,2632.8,0.45963852]
[1643838282385,0.74395136,2633.3,2632.8,0.45963852]
[1643838282583,0.00520476,2633.4,2632.9,0.448]
[1643838282785,0.00520476,2633.4,2632.8,0.448]
[1643838282982,0.00520476,2633.4,2632.9,0.448]
[1643838283183,0.00520476,2633.4,2633.0,0.448]
[1643838283383,0.13819997,2634.0,2633.1,0.448]
[1643838283384,0.22246538,2633.7,2633.1,0.448]
[1643838283583,0.88025673,2633.6,2633.1,0.448]
[1643838283786,0.00546806,2633.3,2633.1,0.448]
[1643838284385,1.22902724,2633.0,2632.7,0.1897]
[1643838284584,1.22902724,2633.0,2632.6,0.13819996]
[1643838285329,0.00546803,2633.3,2632.7,0.448]
[1643838285530,1.32792048,2634.5,2633.0,5.7]